Cogmind - Beta 17.1 @@@ ROGUE MODE // 2026.08.26 @ 17:55:36 Player: ATOM Result: Destroyed by 1C-NN9(R) with Subdweller Shrapnel Launcher Performance ------------- Evolutions (0) 0 Regions Visited (3) 600 Robots Destroyed (45) 225 Value Destroyed (1108) 1108 Prototype IDs (2) 40 Alien Tech Used (0) 0 Bonus (0) 0 TOTAL SCORE: 1973 Bonus ------- None Cogmind --------- Core Integrity 0/250 Matter 286/300 Energy 100/100 System Corruption 0% Temperature Cool (0) Movement Treading (160) Location -10/Subcaves Parts ------- > --- POWER (1) -------- (None) > --- PROPULSION (2) --- Improved Treads Improved Treads > --- UTILITY (2) ------ Large Storage Unit Hacking Suite > --- WEAPON (2) ------- Makeshift Spear > --- INVENTORY (15) --- Makeshift Power Source Compact Wheel Compact Wheel Improved Heat Sink Large Storage Unit Targeting Computer Makeshift Transmission Jammer Power Shielding Light Armor Plating Mining Laser Scrap Shield Fragment (45) Peak State ------------ > --- POWER ------------ Light Nuclear Core > --- PROPULSION ------- Improved Treads Improved Treads > --- UTILITY ---------- Large Storage Unit Hacking Suite > --- WEAPON ----------- Makeshift Spear > --- INVENTORY -------- Makeshift Power Source Compact Wheel Compact Wheel Improved Heat Sink Large Storage Unit Targeting Computer Makeshift Transmission Jammer Power Shielding Light Armor Plating Mining Laser Scrap Shield Fragment [Rating: 17] Favorites ----------- Power Ion Engine Engine Ion Engine Power Core Light Nuclear Core Propulsion Improved Treads Treads Improved Treads Wheel Wheel Hover Unit Hover Unit Utility Hacking Suite Storage Large Storage Unit Processor Signal Interpreter Hackware Hacking Suite Weapon Light Cannon Energy Gun EM Pulse Gun Ballistic Gun Assault Rifle Ballistic Cannon Light Cannon Launcher Grenade Launcher Piercing Weapon Makeshift Spear Build | -11 -10 -10 -10 ------- Run | Yrd Mat Min Sub Slots Evolved . | . . . . Power . | . . . . Propulsion . | . . . . Utility . | . . . . Weapon . | . . . . Parts Attached 24 | 4 14 . 6 Power 3 | 1 1 . 1 Engine 2 | 1 1 . . Core 1 | . . . 1 Reactor . | . . . . Propulsion 9 | 2 5 . 2 Treads 6 | . 4 . 2 Leg . | . . . . Wheel 2 | 2 . . . Hover 1 | . 1 . . Flight . | . . . . Utility 4 | 1 3 . . Device . | . . . . Storage 2 | 1 1 . . Processor 1 | . 1 . . Hackware 1 | . 1 . . Protection . | . . . . Artifact . | . . . . Weapon 8 | . 5 . 3 Energy Gun 2 | . 2 . . Energy Cannon . | . . . . Ballistic Gun 1 | . 1 . . Ballistic Cannon 2 | . 1 . 1 Launcher 2 | . 1 . 1 Special Weapon . | . . . . Impact Weapon . | . . . . Slashing Weapon . | . . . . Piercing Weapon 1 | . . . 1 Special Melee Weapon . | . . . . Unidentified Prototypes . | . . . . Parts Lost 10 | . 2 . 8 Power 2 | . . . 2 Propulsion 3 | . 1 . 2 Utility . | . . . . Weapon 5 | . 1 . 4 Highest Loss Streak 5 | . 1 . 5 To Critical Strikes 1 | . . . 1 Average Backups 9 | 3 7 12 11 Power . | . . . . Propulsion 3 | 1 2 4 3 Utility 3 | . 2 5 5 Weapon 2 | 1 1 3 2 Tool/Special . | . . . . Unused Backups 9 | . 1 1 7 Power . | . . . . Propulsion 3 | . 1 . 2 Utility 6 | . . 1 5 Weapon . | . . . . Tool/Special . | . . . . Average Slot Usage (%) 96 | . 93 100 98 Engine 10 | . 14 14 4 Core 3 | . . . 9 Treads 25 | . 22 28 27 Wheel 1 | . 2 . . Storage 14 | . 14 14 14 Hackware 12 | . 11 14 14 Energy Gun 9 | . 12 14 4 Ballistic Gun 3 | . 7 . . Ballistic Cannon 11 | . 5 14 19 Launcher 1 | . . . 3 Peak Build Rating 17 | 4 12 13 17 Average Rating 11 | 3 9 12 13 On Entrance 7 | . 3 12 13 Avg Prop Armor Cover (%) 6 | . 6 . . Naked Turns . | . . . . Heaviest Build 31 | 10 30 30 31 Greatest Support 46 | 26 46 46 46 Greatest Overweight (x) 1 | 1 1 . . Average Overweight (x) . | . . . . Largest Inventory Capacity 15 | 8 15 15 15 Average Capacity 12 | 7 9 15 15 Most Carried 14 | 7 11 14 13 Average Carried 9 | 3 7 12 12 Final Capacity 15 | 8 15 15 15 Final Carried 13 | 7 11 13 11 Class Distribution -------------------- 100% | Mutant Dominant Class ---------------- Mutant | -10/Materials Mutant | -10/Mines Mutant | -10/Subcaves Resources | -11 -10 -10 -10 ----------- Run | Yrd Mat Min Sub Matter Collected 883 | 177 517 68 121 Remotely . | . . . . Salvage Created 1162 | . 725 259 178 Parts 79 | . 57 17 5 Haulers Intercepted . | . . . . Recyclers Shooed . | . . . . Parts Field Recycled . | . . . . Retrieved Matter . | . . . . Parts Self-Destructed 2 | . . . 2 Prevented . | . . . . Parts Restored . | . . . . Kills | -11 -10 -10 -10 ------- Run | Yrd Mat Min Sub Combat Hostiles Destroyed 35 | . 19 10 6 Melee 2 | . . . 2 Guns 19 | . 13 6 . Cannons 7 | . 1 4 2 AOE 7 | . 5 . 2 Classes Destroyed 8 | . 7 . 1 Worker 1 | . 1 . . Builder 2 | . 2 . . Mechanic 1 | . 1 . . Operator 3 | . 3 . . Watcher 3 | . 3 . . Swarmer 12 | . 6 6 . Grunt 19 | . 13 4 2 Subdweller 4 | . . . 4 Best Kill Streak 11 | . 11 3 2 Combat Bots Only 6 | . 6 3 2 Max Kills in Single Turn 3 | . 3 1 2 Gunslinging 1 | . 1 . . Exploded 2 | . 1 . 2 Melee 1 | . . . 1 Uniques/NPCs Destroyed . | . . . . Combat | -11 -10 -10 -10 -------- Run | Yrd Mat Min Sub Hostile Shots Fired 150 | . 83 28 39 Missed 42 | . 27 8 7 Hits 108 | . 56 20 32 Projectile 108 | . 56 20 32 AOE 2 | . . . 2 Critical Strikes 3 | . . . 3 Damage Taken 1538 | . 599 205 734 Core 269 | . 99 45 125 Absorbed by Shields . | . . . . Core Remaining (%) 100 | 100 . . . Volleys Fired 91 | . 60 15 16 Largest 2 | . 2 2 2 Hottest 70 | . 70 70 70 Shots Fired 172 | . 118 30 24 Gun 109 | . 93 15 1 Cannon 50 | . 14 15 21 Launcher 13 | . 11 . 2 Special . | . . . . Kinetic 96 | . 60 15 21 Thermal 33 | . 33 . . Explosive 13 | . 11 . 2 Electromagnetic 30 | . 14 15 1 Robot Hit Streak 11 | . 6 10 11 Robot Miss Streak 3 | . 3 2 2 Penetration Max . | . . . . Secondary Targets 2 | . 2 . . Max Gunslinging Chain 1 | . 1 . . Shots Hit Robots 104 | . 63 17 24 Core Hits 62 | . 39 13 10 Critical Kills 1 | . 1 . . Critical Parts Destroyed . | . . . . Critical Strikes 5 | . 3 1 1 Burn 1 | . 1 . . Destroy 1 | . 1 . . Blast 2 | . . 1 1 Corrupt 1 | . 1 . . Melee Attacks 7 | . . . 7 Impact . | . . . . Slashing . | . . . . Piercing 7 | . . . 7 Sneak Attacks . | . . . . Combat Hostiles . | . . . . Follow-up Attacks . | . . . . Damage Inflicted 2384 | . 1468 301 615 Guns 931 | . 776 143 12 Cannons 544 | . 85 158 301 Explosions 761 | . 607 . 154 Melee 148 | . . . 148 Ramming . | . . . . Kinetic 867 | . 408 158 301 Thermal 332 | . 332 . . Explosive 716 | . 562 . 154 Electromagnetic 321 | . 166 143 12 Impact . | . . . . Slashing . | . . . . Piercing 148 | . . . 148 Highest Corruption . | . . . . Average Corruption . | . . . . Corruption Purged . | . . . . Corruption Blocked . | . . . . Overload Shots . | . . . . Overflow Damage 8 | . 8 . . Projectiles . | . . . . Explosions 8 | . 8 . . Melee . | . . . . Knockbacks 6 | . . 2 4 Impact . | . . . . Kinetic 6 | . . 2 4 Secondary . | . . . . Self-Inflicted Damage . | . . . . Shots . | . . . . Rammed 1 | . 1 . . Targets Rammed 1 | . 1 . . Kicked . | . . . . Crushed . | . . . . Highest Temperature 126 | . 126 120 2 Average Temperature 39 | . 40 38 2 Received Heat Transfer 507 | . 222 75 210 Siege Activations . | . . . . Martial Activations . | . . . . Shielding Activations . | . . . . Robots Disrupted . | . . . . Combat Hostiles . | . . . . Robots Corrupted . | . . . . Combat Hostiles . | . . . . Parts Fried . | . . . . Impact Corruptions . | . . . . Robots Melted . | . . . . Combat Hostiles . | . . . . Parts Melted 1 | . . . 1 Heat Transferred 975 | . 975 . . Parts Sabotaged . | . . . . Parts Stolen . | . . . . Parts Stripped . | . . . . Power Chain Reactions 1 | . 1 . . Alert | -11 -10 -10 -10 ------- Run | Yrd Mat Min Sub Maximum Alert Level 1 | . 1 . . Low Security (%) 61 | 100 45 100 . Level 1 38 | . 54 . . Level 2 . | . . . . Level 3 . | . . . . Level 4 . | . . . . Level 5 . | . . . . High Security . | . . . . Max Security . | . . . . Peak Influence 335 | . 335 168 . Initial 98 | . . 98 . Average 143 | . 156 124 . Influence Increases 971 | . 681 240 50 Destroy 0b10 Robot/C 620 | . 380 200 40 Destroy 0b10 Robot/NC 50 | . 50 . . Destroy Leader 146 | . 96 40 10 Disable Machine 15 | . 15 . . Destroy Structure 65 | . 65 . . Lose Combat Pursuer 75 | . 75 . . Influence Decreases 971 | . 428 433 110 Entered New Map 187 | . . 155 32 Time Decay 764 | . 408 278 78 Lost Part 20 | . 20 . . Squads Dispatched 6 | . 6 . . Investigation 3 | . 3 . . Extermination . | . . . . Reinforcement 3 | . 3 . . Assault . | . . . . Garrison . | . . . . Intercept . | . . . . Searches Triggered . | . . . . Construction Impeded . | . . . . Haulers Reinforced . | . . . . Active Scanning Responses . | . . . . Cargo Convoy Interrupts . | . . . . Stealth | -11 -10 -10 -10 --------- Run | Yrd Mat Min Sub Distress Signals 4 | . 3 1 . Communications Jammed . | . . . . Distress Signals . | . . . . Times Spotted 45 | . 29 9 7 Peak Tracking Total 4 | . 4 3 3 Tactical Retreats 2 | . 2 . . Traps | -11 -10 -10 -10 ------- Run | Yrd Mat Min Sub Traps Triggered 6 | . 4 . 2 Indirectly . | . . . . Trap Hack Attempts . | . . . . Triggered . | . . . . Disarmed 4 | . 4 . . Reprogrammed . | . . . . Reused . | . . . . Traps Extracted . | . . . . Installed . | . . . . Triggered . | . . . . Machines | -11 -10 -10 -10 ---------- Run | Yrd Mat Min Sub Machines Disabled 1 | . 1 . . Max in Single Turn 1 | . 1 . . Machines Repaired . | . . . . Machines Dismantled . | . . . . Machines Sabotaged . | . . . . Overloaded Fab Kills . | . . . . Hacking | -11 -10 -10 -10 --------- Run | Yrd Mat Min Sub Machines Accessed 7 | . 6 . 1 Terminals 4 | . 4 . . Fabricators . | . . . . Repair Stations . | . . . . Recycling Units 2 | . 2 . . Scanalyzers . | . . . . Garrison Access . | . . . . Total Hacks 15 | . 10 . 5 Successful 12 | . 7 . 5 Failed 3 | . 3 . . Catastrophic . | . . . . Database Lockouts . | . . . . Manual . | . . . . Terminals 8 | . 8 . . Fabricators . | . . . . Repair Stations . | . . . . Recycling Units 2 | . 2 . . Scanalyzers . | . . . . Garrison Access . | . . . . Terminal Hacks 10 | . 5 . 5 Record 6 | . 1 . 5 Prototype ID Bank 1 | . 1 . . Locate Traps 1 | . 1 . . Disarm Traps 1 | . 1 . . Zone Layout 1 | . 1 . . Fabricator Hacks . | . . . . Repair Station Hacks . | . . . . Recycling Unit Hacks 2 | . 2 . . Report Inventory 2 | . 2 . . Scanalyzer . | . . . . Garrison Access Hacks . | . . . . Unauthorized Hacks . | . . . . Terminals . | . . . . Fabricators . | . . . . Repair Stations . | . . . . Recycling Units . | . . . . Scanalyzers . | . . . . Garrison Access . | . . . . Data Cores Recovered . | . . . . Used . | . . . . Hacking Detections 2 | . 2 . . Full Trace Events . | . . . . Feedback Events . | . . . . Feedback Blocked . | . . . . Robot Schematics Acquired . | . . . . Robots Built . | . . . . Authchips . | . . . . Time . | . . . . Total Robot Build Rating . | . . . . Part Schematics Acquired . | . . . . Parts Built . | . . . . Authchips . | . . . . Time . | . . . . Total Part Build Rating . | . . . . Part Studies Acquired . | . . . . Parts Repaired . | . . . . Time . | . . . . Parts Recycled . | . . . . Recycled Matter . | . . . . Retrieved Matter . | . . . . Retrieved Components . | . . . . Parts Scanalyzed . | . . . . Part Schematics Acquired . | . . . . Parts Damaged . | . . . . Bothacking | -11 -10 -10 -10 ------------ Run | Yrd Mat Min Sub Used RIF Installer . | . . . . Robots Hacked . | . . . . Non-combat . | . . . . Combat . | . . . . Robot Hacks Applied . | . . . . Relay Couplers Released . | . . . . Fabnet Peak Effective % . | . . . . Robots Rewired . | . . . . Allies Hacked . | . . . . Hacks Repelled . | . . . . Allies | -11 -10 -10 -10 -------- Run | Yrd Mat Min Sub Total Allies . | . . . . Largest Group . | . . . . Highest-Rated Group . | . . . . Highest-Rated Ally . | . . . . Total Orders . | . . . . Ally Attacks . | . . . . Total Damage . | . . . . Kills . | . . . . Allies Corrupted . | . . . . Allies Melted . | . . . . Intel | -11 -10 -10 -10 ------- Run | Yrd Mat Min Sub Active Infowar (turns) . | . . . . Robot Analysis Total . | . . . . Derelict Logs Recovered 3 | . . 2 1 Drone Launches . | . . . . Drone Recoveries . | . . . . Exploration | -11 -10 -10 -10 ------------- Run | Yrd Mat Min Sub Turns Passed 3251 | 56 1509 612 1074 Spaces Moved 1885 | 46 864 353 622 Core 5 | 5 . . . Treads 1627 | . 652 353 622 Legs . | . . . . Wheels 253 | 41 212 . . Hover . | . . . . Flight . | . . . . Fastest Speed 50 | 50 80 160 160 Average Speed 149 | 85 142 160 160 Slowest Speed 160 | 100 160 160 160 Overloaded Moves . | . . . . Propulsion Burnouts . | . . . . Robots Hopped . | . . . . Potential Cave-ins . | . . . . Cave-ins Triggered . | . . . . Exploration Rate (%) 49 | 5 95 58 38 Regions Visited 3 Branch Regions 2 Pre-discovered Areas 4 | . . 2 2 Known Exits Taken . | . . . . Unknown Exits Taken 3 | 1 1 1 . Scrap Searched 1 | . . 1 . Spaces Dug . | . . . . Terrain Destroyed 68 | . 62 . 6 Melee . | . . . . Projectile . | . . . . AOE 68 | . 62 . 6 Terrain Rammed . | . . . . Walls Destroyed . | . . . . Machines Disabled . | . . . . Actions | -11 -10 -10 -10 --------- Run | Yrd Mat Min Sub Total 2130 | 63 1027 371 669 Wait 76 | . 62 . 14 Move 1882 | 45 863 352 622 Hop . | . . . . Pick Up 35 | 11 17 3 4 Fast Attach 1 | . 1 . . Attach 17 | 5 6 . 6 Detach 1 | 1 . . . Swap 9 | . 9 . . Drop 10 | 1 8 1 . Fire 91 | . 60 15 16 Melee 7 | . . . 7 Ram . | . . . . Kick . | . . . . Crush 1 | . 1 . . Escape Stasis . | . . . . Rewire . | . . . . Trap . | . . . . Miscellaneous . | . . . . Route ------- -11/Scrapyard -10/Materials (discovered 4 exits: [*Mat x3] / [*Min]) -10/Mines -10/Subcaves History --------- Turn | Location | Event 25 | -11/Scrapyard | Discovered new exit (range 15) 57 | -11/Scrapyard | Entered Materials 236 | -10/Materials | Discovered new exit (range 7) 314 | -10/Materials | Build established: Mutant 356 | -10/Materials | Discovered new exit (range 15) 768 | -10/Materials | Discovered new exit (range 16) 1221 | -10/Materials | Discovered new exit (range 16) 1566 | -10/Materials | Entered Mines 1596 | -10/Mines | Learned location of Storage (-8) 1671 | -10/Mines | Learned location of Zion (-6) 1831 | -10/Mines | Core integrity fell below 50% 1847 | -10/Mines | A weapon hastily lodged in a ceiling crevice suddenly fell to the ground 1963 | -10/Mines | Assembled infested the area 2052 | -10/Mines | Discovered new exit (range 6) 2076 | -10/Mines | Learned Materials terminal intel 2178 | -10/Mines | Entered Subcaves 2827 | -10/Subcaves | A swath of the cavern ceiling suddenly collapsed 2828 | -10/Subcaves | Learned Materials interactive machine intel 2857 | -10/Subcaves | Visited Clippyterm 2862 | -10/Subcaves | Learned location of Extension (-6) 2862 | -10/Subcaves | Learned Factory stockpile data 3188 | -10/Subcaves | Met a Zionite searching for "candidates" 3197 | -10/Subcaves | Ambushed by Subdwellers from Twisted Machinery 3230 | -10/Subcaves | Core integrity fell below 20% 3252 | -10/Subcaves | Destroyed by 1C-NN9(R) with Subdweller Shrapnel Launcher Last Messages --------------- 03197_ 5M-9ZF(R) emerges from the Twisted Machinery. 03197_ J6-08A(z) destroyed. 03198_ JA-MYS(R): "ARGHSUB!" 03201_ JA-MYS(R) knocked back. 03207_ Imp. Treads destroyed. 03213_ JA-MYS(R) knocked back. 03215_ Lgt. Cannon destroyed. 03219_ Grenade Launcher destroyed. 03227_ Critical hit (Destroy). 03227_ Imp. Treads destroyed. 03228_ JA-MYS(R) destroyed. 03231_ QB-WC3(z) destroyed. 03232_ Acquired 23 matter. 03239_ Acquired Mak. Transmission Jammer. 03241_ Acquired Mak. Power Source. 03242_ Sub. Power Source melted. 03242_ 5M-9ZF(R) destroyed. 03244_ Subatomizers dissect the Humpback. 03252_ Lgt. Nuclear Core destroyed. Map ----- +----------------------------------------------------+ | ????????????????????????????????????# % #??? | | ????????????????????????????????????# #? | | ????????????????????????????????????## #### #? | | ?????????????????????????????????????##????# %# | | ???????????????????????????????????????????? | | #??????????????????????????????????????????? | | #??????????????????????????????????????????? ## | | ##??????????????????????????????????????????? #?# | | #??????????????????????????????????????????? ?? | | ##??????????????????????????????????????????? ? | | ##??????????????????????????????????????????????? | | #??????????????????????????????????????????????? | | #??????????????????????????????????????????????? | | #?????????????????????????##???????????????????? | | ##???????????????????????? ##??????????????????? | | #???????????????????????? #??????????????????? | | #???????????????????????" ???????????????????? | | ##???????????????????????" ???????????????????? | | ##???????????????????????? ???????????????????? | | ##????????????????????????# #???#???????????????? | | ###??????????????????????? #?? ##??????????????? | | # ##?????????????????????? ### ##?????????????? | | # #?????????????????????? ##????????????? | | # #?????????????????????## ##???????????? | | #???????????????????###R "????????????? | | ##??????????????????## @ #??????????????????? | | ##???????????????????# ;##?????????????????? | | #???????????????????## ; #?????????????????? | | #??????????????????## #; !; #?????????????????? | | #??????????????????# #;%!% #?????????????????? | | "##???????????????# #" %;; #?????????????????? | | "#??????????????# ##"; %; #?????????????????? | | "#??????????????# #?# ###?????????????????? | | "#??????????????# #??# % #??????????????????? | | ##??????????????####?### ##?????????????????? | | ##??????????????????# ### #?????????????????? | | ^ #??????????????????# ### ##????????????????? | | ##??????????????????# # # #????????????????? | | ##?????????????????## #????????????????? | | ####???????????#### ##????????????????? | | ## ###?????????# ## #?????????????????? | | ## # ##???????## ##### ##?????????????????? | | ## #??????## ###??? #??????????????????? | | ## ######## ##????? #??????????????????? | | ## ### ## ##?????? ##??????????????????? | | ## ##???????#????????????????????? | | ## ##?????????????????????????????? | | ##??????????????????????????????? | | ## #???????????????????????????????? | | ## ### #??????????????????????????????? | +----------------------------------------------------+ Best States ------------- Heat Dissipation 25 Energy Generation 14 Energy Capacity 250 Matter Stores 300 Matter Capacity 300 Sight Range 16 Terrain Scan Density 10 Evasion (%) 44 Recoil Reduction 2 Offensive Hacking 10 Item Schematics ----------------- None Robot Schematics ------------------ None Fabricated ------------ Nothing Repaired ---------- Nothing Studied --------- None Alien Tech Used ----------------- None Achievements -------------- None Challenges ------------ None Game ------ Seed WarpActuatorObliterator Manual? 0 Play Time 00:21:15 Cumulative 34.6 hours Start 2026.08.26 @ 17:34:49 End 2026.08.26 @ 17:55:36 Sessions 1 Manual Loads 0 Difficulty Rogue Special Mode None Game No. 51 Rogue 51 Adventurer 0 Explorer 0 Win Type - Total 0 Types 0/0/0/0/0/0/0/0/0/0 Lore% 17 Gallery% 21 Achievement% 18 Wizard Run 0 Options --------- Layout 1 ASCII 0 Keyboard 0 Movement Mouse Keybinds 0 Fullscreen 1 Font 16/SmallcapsGlow Map View 50x40 Zoom Use 0% Tactical HUD 1 Map Filters NONE Filters NONE Steam SD RUN: e47232cd-32c2-481b-b808-ebf0e3f1662e